fUST/lending_fUST_20250228
["ID","MTS","AMOUNT","RATE_DAILY","PERIOD"]
[354830987,1740727843177,-604.0,0.00054694,120]
[354830993,1740727846368,-23710.9403839,0.00054694,120]
[354830994,1740727846378,-171.07403231,0.00054694,2]
[354830995,1740727846389,-500.0,0.00054773,10]
[354830996,1740727846401,-500.0,0.00054773,10]
[354830997,1740727846411,-500.0,0.00054773,10]
[354830998,1740727846420,-500.0,0.00054773,10]
[354830999,1740727846431,-500.0,0.00054773,10]
[354831000,1740727846440,-500.0,0.00054794,30]
[354831001,1740727846450,-502.63634981,0.00054794,120]
[354831002,1740727846460,-500.0,0.00054794,120]
[354831003,1740727846470,-500.0,0.00054794,120]
[354831004,1740727846482,-500.0,0.00054794,120]
[354831005,1740727846492,-500.0,0.00054794,120]
[354831006,1740727846501,-126.38174905,0.00054794,120]
[354831009,1740727886774,211.460677,0.00046494,2]
[354831011,1740727948515,50000.0,0.00060934,30]
[354831012,1740727982414,1358.77307,0.00060934,7]
[354831013,1740728136619,50000.0,0.00035,7]
[354831014,1740728137091,500.0,0.00027,30]
[354831017,1740728359385,-288.64,0.0004,2]
[354831019,1740728384539,-2888.64,0.0004,2]
[354831020,1740728752111,-1618.3861897,0.00033403,2]
[354831021,1740728752133,-1235.91258273,0.0004,2]
[354831022,1740728752154,-160.0,0.00040067,2]
[354831023,1740728752175,-206.8061017,0.00042992,2]
[354831024,1740728752197,-2433.95274663,0.00043172,2]
[354831025,1740728752218,-185.389151,0.00044912,2]
[354831026,1740728752241,-151.0,0.00045,120]
[354831027,1740728752263,-270.0,0.00045,120]
[354831028,1740728752286,-1226.95354889,0.00045805,120]
[354831029,1740728752309,-550.0,0.00045905,5]
[354831030,1740728752329,-8346.7265752,0.00045906,120]
[354831031,1740728752349,-250.0,0.00047473,2]
[354831032,1740728752371,-2673.85002211,0.00047767,2]
[354831033,1740728752393,-238.63522877,0.000479,11]
[354831034,1740728752415,-770.0,0.00048664,5]
[354831035,1740728752435,-757.0,0.00049,120]
[354831036,1740728752456,-1455.71643756,0.0004908,2]
[354831037,1740728752477,-185.389151,0.00049403,2]
[354831038,1740728752499,-10000.0,0.000495,100]
[354831039,1740728752520,-165.0,0.000499,120]
[354831040,1740728752540,-4499.869999,0.0005,30]
[354831041,1740728752561,-757.0,0.00051,120]
[354831042,1740728752583,-1077.0,0.00051589,15]
[354831043,1740728752606,-500.0,0.00052602,30]
[354831044,1740728752630,-165.0,0.000528,120]
[354831045,1740728752653,-757.0,0.00053,120]
[354831046,1740728752674,-920.64505562,0.00053,120]
[354831047,1740728819698,500.0,7e-05,14]
[354831048,1740728834115,-186.09809,0.00032877,2]
[354831049,1740728834139,-24900.0,0.00042665,2]
[354831050,1740728834163,-238.63522874,0.000529,12]
[354831051,1740728834186,-1919.63099138,0.00053,120]
[354831052,1740728834206,-10058.608,0.00053,120]
[354831053,1740728834230,-500.0,0.0005315,35]
[354831054,1740728834250,-500.0,0.00053698,40]
[354831055,1740728834271,-20000.0,0.0005379,120]
[354831056,1740728834291,-3132.42435097,0.000538,120]
[354831057,1740728835102,-6867.57564903,0.000538,120]
[354831058,1740728835123,-160.45547627,0.0005396,10]
[354831059,1740728835146,-360.2453854,0.0005396,10]
[354831060,1740728835170,-503.05758259,0.0005396,10]
[354831061,1740728835192,-8630.04,0.00053978,10]
[354831062,1740728835213,-501.81423849,0.00053988,31]
[354831063,1740728835235,-500.0,0.00053988,31]
[354831064,1740728835257,-500.0,0.00053988,120]
[354831065,1740728835278,-638.95723615,0.00053988,120]
[354831066,1740728835301,-500.0,0.00053988,120]
[354831067,1740728835327,-500.0,0.00053988,2]
[354831068,1740728835351,-500.0,0.00053988,120]
[354831069,1740728835372,-500.0,0.00053988,120]
[354831070,1740728835395,-500.0,0.00053988,120]
[354831071,1740728835417,-500.0,0.00053988,120]
[354831072,1740728835438,-500.0,0.00053988,120]
[354831073,1740728835459,-500.0,0.00053988,31]
[354831074,1740728835483,-500.0,0.00053988,120]
[354831075,1740728835506,-500.0,0.00053988,2]
[354831076,1740728835528,-500.0,0.00053988,120]
[354831077,1740728835553,-141.31887698,0.00053988,120]
[354831080,1740728842100,-358.68112302,0.00053988,120]
[354831081,1740728842122,-545.96218649,0.00053988,120]
[354831082,1740728842145,-500.0,0.00053988,2]
[354831083,1740728842169,-500.0,0.00053988,120]
[354831084,1740728842191,-500.0,0.00053988,31]
[354831085,1740728842215,-216.07578826,0.00053988,2]
[354831086,1740728842238,-500.0,0.00053988,120]
[354831087,1740728842261,-500.0,0.00053988,120]
[354831088,1740728842284,-500.0,0.00053988,120]
[354831089,1740728842306,-500.0,0.00053988,120]
[354831090,1740728842328,-377.25646866,0.00053988,31]
[354831091,1740728842351,-500.0,0.00053988,120]
[354831092,1740728842372,-500.0,0.00053988,120]
[354831093,1740728842393,-500.0,0.00053988,120]
[354831094,1740728842416,-500.0,0.00053988,120]
[354831095,1740728842438,-500.0,0.00053988,2]
[354831096,1740728842458,-500.0,0.00053988,120]
[354831097,1740728842480,-397.34340263,0.00053988,120]
[354831098,1740728842502,-500.0,0.00053988,120]
[354831099,1740728842523,-500.0,0.00053988,120]
[354831100,1740728842546,-500.0,0.00053988,2]
[354831101,1740728842567,-500.0,0.00053988,120]
[354831102,1740728842590,-500.0,0.00053988,120]
[354831103,1740728842612,-500.0,0.00053988,120]
[354831104,1740728842639,-500.0,0.00053988,120]
[354831105,1740728842662,-500.0,0.00053988,2]
[354831106,1740728842683,-500.0,0.00053988,120]
[354831107,1740728842705,-500.0,0.00053988,120]
[354831108,1740728842730,-500.0,0.00053988,120]
[354831109,1740728842753,-500.0,0.00053988,2]
[354831110,1740728842774,-500.0,0.00053988,120]
[354831111,1740728842794,-500.0,0.00053988,120]
[354831112,1740728842816,-500.0,0.00053988,120]
[354831113,1740728842839,-500.0,0.00053988,120]
[354831114,1740728842861,-500.0,0.00053988,120]
[354831115,1740728842881,-500.0,0.00053988,120]
[354831116,1740728842904,-500.0,0.00053988,2]
[354831117,1740728842924,-500.0,0.00053988,120]
[354831118,1740728842946,-500.0,0.00053988,120]
[354831119,1740728842968,-500.0,0.00053988,120]
[354831120,1740728842990,-500.0,0.00053988,2]
[354831121,1740728843010,-500.0,0.00053988,120]
[354831122,1740728843033,-500.0,0.00053988,120]
[354831123,1740728843055,-500.0,0.00053988,120]
[354831124,1740728843079,-500.0,0.00053988,120]
[354831125,1740728843103,-500.0,0.00053988,120]
[354831126,1740728843129,-500.0,0.00053988,120]
[354831127,1740728843152,-500.0,0.00053988,120]
[354831128,1740728843176,-309.76224105,0.00053988,120]
[354831129,1740728843199,-362.95738958,0.00053988,120]
[354831130,1740728843223,-500.0,0.00053988,120]
[354831131,1740728843244,-500.0,0.00054246,45]
[354831132,1740728843270,-552.79,0.00054383,30]
[354831133,1740728843292,-593.91317039,0.00054583,2]
[354831134,1740728843314,-10356.05,0.00054584,10]
[354831135,1740728843336,-11589.08179131,0.00054594,120]
[354831136,1740728843356,-593.91317035,0.00054611,2]
[354831137,1740728843377,-593.91317035,0.00054639,2]
[354831138,1740728843397,-593.91317035,0.00054666,2]
[354831139,1740728843418,-64662.40869092,0.0005467,30]
[354831141,1740728844097,-2806.88177643,0.0005467,30]
[354831143,1740728846104,-77344.00394316,0.0005467,30]
[354831145,1740728847114,-7191.7,0.0005466,10]
[354831146,1740728847136,-16933.78090378,0.0005467,30]
[354831161,1740728959086,-2356.82516193,0.0005257,4]
[354831162,1740728968980,398.639141,0.00046966,2]
[354831163,1740729014838,76106.165535,0.00060953,35]
[354831199,1740729032349,-279.83021472,0.00054493,2]
[354831200,1740729032361,-8.96183341,0.00054493,2]
[354831201,1740729032371,-981.56283912,0.00054493,120]
[354831202,1740729032380,-288.79204811,0.00054528,2]
[354831203,1740729032389,-168.1282212,0.00054563,2]
[354831204,1740729032411,-120.66382691,0.00054563,2]
[354831205,1740729032422,-1522.64736506,0.00054573,28]
[354831206,1740729032431,-2598.07,0.00054593,120]
[354831208,1740729032441,-4352.39702394,0.0005466,10]
[354831209,1740729032461,-1640.69297606,0.0005466,10]
[354831210,1740729032470,-3023.19684131,0.0005466,10]
[354831211,1740729032485,-782.125,0.0005466,10]
[354831212,1740729032497,-610.87815869,0.0005466,10]
[354831213,1740729032507,-1569.89184134,0.0005466,10]
[354831226,1740729038237,-2688.31815866,0.0005466,10]
[354831227,1740729038246,-500.0,0.00054669,120]
[354831228,1740729038256,-500.0,0.00054669,120]
[354831229,1740729038265,-500.0,0.00054669,120]
[354831230,1740729038275,-616.21802072,0.00054669,120]
[354831231,1740729038284,-208.58405207,0.00054669,31]
[354831232,1740729038294,-500.0,0.00054669,120]
[354831233,1740729038304,-500.0,0.00054669,120]
[354831234,1740729038313,-311.77976858,0.00054669,120]
[354831235,1740729038324,-188.22023142,0.00054669,120]
[354831236,1740729038334,-524.00842092,0.00054669,2]
[354831237,1740729038344,-500.0,0.00054669,120]
[354831238,1740729038353,-500.0,0.00054669,120]
[354831239,1740729038363,-500.0,0.00054669,120]
[354831240,1740729038372,-498.14723301,0.00054669,120]
[354831241,1740729038380,-153.5518679,0.00054669,120]
[354831242,1740729038390,-419.09790603,0.00054669,120]
[354831243,1740729038399,-500.0,0.00054669,120]
[354831244,1740729038409,-87260.43804093,0.0005467,30]
[354831245,1740729038418,-4046.0612891,0.00054673,120]
[354831246,1740729038508,-6826.15518457,0.00054673,120]
[354831247,1740729038805,-4293.78283574,0.00054673,120]
[354831248,1740729038817,-7054.73842038,0.00054673,120]
[354831249,1740729038828,-5537.03761122,0.00054673,120]
[354831250,1740729038839,-1082.62254946,0.00054673,120]
[354831251,1740729038848,-1017.37745054,0.0005468,40]
[354831252,1740729038860,-23982.62254947,0.0005468,40]
[354831253,1740729038869,-1000.0,0.00054683,120]
[354831254,1740729038878,-13547.87897602,0.00054694,2]
[354831326,1740729044826,-1048.14195132,0.00054684,10]
[354831327,1740729045136,-2728.48804868,0.00054684,10]
[354831328,1740729045146,-1888.98226131,0.00054694,2]
[354831331,1740729045541,-51589.11215291,0.00054694,2]
[354831332,1740729045553,-61475.69429495,0.00054694,2]
[354831342,1740729046606,-311.87575294,0.00054694,2]
[354831348,1740729047159,-12733.78019593,0.00054694,2]
[354831349,1740729051297,-80452.67636594,0.00054694,2]
[354831350,1740729051307,-506.16087231,0.00054694,120]
[354831351,1740729051316,-593.91317035,0.00054694,2]
[354831352,1740729051326,-151.85,0.000547,30]
[354831353,1740729051336,-725.4,0.000547,30]
[354831354,1740729051345,-824.53,0.000547,30]
[354831355,1740729051356,-160.0,0.00054707,2]
[354831356,1740729051366,-1000.0,0.00054711,120]
[354831357,1740729051376,-500.0,0.00054773,10]
[354831358,1740729051385,-500.0,0.00054773,7]
[354831359,1740729051394,-500.0,0.00054773,10]
[354831360,1740729051403,-303.66154742,0.00054773,10]
[354831361,1740729051413,-500.0,0.00054773,10]
[354831362,1740729051422,-500.0,0.00054773,10]
[354831363,1740729051431,-509.56818515,0.00054773,10]
[354831364,1740729051441,-503.28641367,0.00054773,10]
[354831365,1740729051451,-481.84367481,0.00054773,10]
[354831366,1740729051461,-651.53760115,0.00054793,31]
[354831367,1740729051470,-424.75422503,0.00054793,120]
[354831368,1740729051479,-500.0,0.00054794,120]
[354831369,1740729051489,-500.0,0.00054794,120]
[354831370,1740729051500,-631.2019315,0.00054794,120]
[354831371,1740729051510,-373.61825095,0.00054794,120]
[354831372,1740729051519,-1005.0,0.00054794,120]
[354831373,1740729051529,-500.0,0.00054794,120]
[354831374,1740729051538,-500.0,0.00054794,120]
[354831375,1740729051548,-500.0,0.00054794,120]
[354831376,1740729051557,-268.86294844,0.00054794,120]
[354831377,1740729051568,-500.0,0.00054794,120]
[354831378,1740729051577,-502.97691077,0.00054794,120]
[354831379,1740729051587,-500.0,0.00054794,2]
[354831380,1740729051597,-502.09340099,0.00054794,2]
[354831381,1740729051606,-500.36590777,0.00054794,120]
[354831382,1740729051615,-504.55041565,0.00054794,120]
[354831383,1740729051624,-501.88670749,0.00054794,120]
[354831384,1740729051633,-505.0,0.00054794,120]
[354831385,1740729051643,-502.57200086,0.00054794,120]
[354831386,1740729051652,-500.0,0.00054794,120]
[354831387,1740729051661,-502.53368963,0.00054794,120]
[354831388,1740729051670,-502.40821066,0.00054794,120]
[354831389,1740729051679,-500.0,0.00054794,120]
[354831390,1740729051688,-500.0,0.00054794,120]
[354831391,1740729051697,-500.0,0.00054794,120]
[354831392,1740729051709,-502.68936023,0.00054794,120]
[354831393,1740729051718,-500.0,0.00054794,120]
[354831394,1740729051727,-500.0,0.00054794,120]
[354831395,1740729051737,-504.29407692,0.00054794,120]
[354831396,1740729051747,-500.0,0.00054794,120]
[354831397,1740729051757,-501.40345264,0.00054794,120]
[354831398,1740729051766,-500.0,0.00054794,120]
[354831399,1740729051777,-500.0,0.00054794,120]
[354831400,1740729051786,-502.4046153,0.00054794,120]
[354831401,1740729051796,-500.0,0.00054794,120]
[354831402,1740729051805,-292.03660162,0.00054794,120]
[354831403,1740729051814,-500.0,0.00054794,120]
[354831404,1740729051824,-500.0,0.00054794,120]
[354831405,1740729051833,-500.0,0.00054794,120]
[354831406,1740729051842,-541.54,0.00054794,120]
[354831407,1740729051852,-506.70797715,0.00054794,120]
[354831408,1740729051861,-500.0,0.00054794,120]
[354831409,1740729051871,-500.0,0.00054794,120]
[354831410,1740729051881,-493.1,0.00054794,120]
[354831411,1740729051890,-500.0,0.00054794,120]
[354831412,1740729051900,-500.0,0.00054794,120]
[354831413,1740729051909,-500.0,0.00054794,120]
[354831414,1740729051919,-500.0,0.00054794,120]
[354831415,1740729051928,-500.0,0.00054794,120]
[354831416,1740729051937,-500.0,0.00054794,120]
[354831417,1740729051946,-500.0,0.00054794,120]
[354831418,1740729051955,-500.0,0.00054794,120]
[354831419,1740729051964,-500.0,0.00054794,120]
[354831420,1740729051974,-632.85370645,0.00054794,120]
[354831421,1740729051984,-500.0,0.00054794,120]
[354831422,1740729051993,-500.0,0.00054794,120]
[354831423,1740729052006,-506.04046465,0.00054794,120]
[354831424,1740729052015,-500.0,0.00054794,50]
[354831425,1740729052024,-500.0,0.00054794,120]
[354831426,1740729052034,-500.0,0.00054794,120]
[354831427,1740729052043,-500.0,0.00054794,120]
[354831428,1740729052053,-500.0,0.00054794,120]
[354831429,1740729052062,-500.0,0.00054794,120]
[354831430,1740729052072,-500.0,0.00054794,120]
[354831431,1740729052081,-500.0,0.00054794,120]
[354831432,1740729052091,-500.0,0.00054794,120]
[354831433,1740729052100,-500.0,0.00054794,120]
[354831434,1740729052110,-500.0,0.00054794,120]
[354831435,1740729052120,-500.0,0.00054794,120]
[354831436,1740729052129,-500.0,0.00054794,120]
[354831437,1740729052139,-500.0,0.00054794,120]
[354831438,1740729052148,-500.0,0.00054794,120]
[354831439,1740729052158,-501.39,0.00054794,120]
[354831440,1740729052167,-500.0,0.00054794,120]
[354831441,1740729052176,-500.0,0.00054794,120]
[354831442,1740729052186,-500.0,0.00054794,120]
[354831443,1740729052196,-500.0,0.00054794,120]
[354831444,1740729052205,-500.0,0.00054794,120]
[354831445,1740729052214,-500.0,0.00054794,120]
[354831446,1740729052224,-500.0,0.00054794,120]
[354831447,1740729052233,-500.0,0.00054794,120]
[354831448,1740729052243,-500.0,0.00054794,120]
[354831449,1740729052256,-500.0,0.00054794,120]
[354831450,1740729052266,-500.0,0.00054794,120]
[354831451,1740729052276,-500.0,0.00054794,120]
[354831452,1740729052292,-531.78,0.00054794,120]
[354831453,1740729052302,-500.0,0.00054794,120]
[354831454,1740729052311,-500.0,0.00054794,120]
[354831455,1740729052320,-500.0,0.00054794,120]
[354831456,1740729052330,-500.0,0.00054794,120]
[354831457,1740729052339,-506.15338275,0.00054794,120]
[354831458,1740729052349,-500.0,0.00054794,120]
[354831459,1740729052359,-500.0,0.00054794,120]
[354831460,1740729052372,-500.0,0.00054794,120]
[354831461,1740729052512,-500.0,0.00054794,120]
[354831462,1740729052522,-500.0,0.00054794,120]
[354831463,1740729052531,-504.17866253,0.00054794,120]
[354831464,1740729052540,-500.0,0.00054794,120]
[354831465,1740729052550,-500.0,0.00054794,120]
[354831466,1740729052559,-500.0,0.00054794,120]
[354831467,1740729052569,-500.0,0.00054794,120]
[354831468,1740729052578,-500.0,0.00054794,120]
[354831469,1740729052588,-500.0,0.00054794,120]
[354831470,1740729052597,-500.0,0.00054794,120]
[354831471,1740729052607,-500.0,0.00054794,120]
[354831472,1740729052616,-500.0,0.00054794,120]
[354831473,1740729052626,-500.0,0.00054794,120]
[354831474,1740729052636,-500.0,0.00054794,120]
[354831475,1740729052647,-500.0,0.00054794,120]
[354831476,1740729052657,-500.0,0.00054794,120]
[354831477,1740729052667,-500.0,0.00054794,120]
[354831478,1740729052676,-500.0,0.00054794,120]
[354831479,1740729052686,-500.0,0.00054794,120]
[354831480,1740729052698,-500.0,0.00054794,120]
[354831481,1740729052711,-1899.72,0.00054794,120]
[354831482,1740729052720,-500.0,0.00054794,120]
[354831483,1740729052732,-864.26,0.00054794,120]
[354831484,1740729052742,-500.0,0.00054794,120]
[354831485,1740729052753,-500.0,0.00054794,120]
[354831486,1740729052762,-807.93,0.00054794,120]
[354831487,1740729052772,-500.0,0.00054794,120]
[354831488,1740729052782,-500.0,0.00054794,120]
[354831489,1740729052791,-500.0,0.00054794,120]
[354831490,1740729052801,-500.0,0.00054794,120]
[354831491,1740729052810,-500.0,0.00054794,120]
[354831492,1740729052820,-948.86,0.00054794,120]
[354831493,1740729052829,-500.0,0.00054794,120]
[354831494,1740729052838,-500.0,0.00054794,120]
[354831495,1740729052848,-500.0,0.00054794,120]
[354831496,1740729052857,-500.0,0.00054794,120]
[354831497,1740729052867,-500.0,0.00054794,120]
[354831498,1740729052876,-513.52476774,0.00054794,120]
[354831499,1740729052886,-500.0,0.00054794,120]
[354831500,1740729052895,-500.0,0.00054794,120]
[354831501,1740729052905,-500.0,0.00054794,120]
[354831502,1740729052914,-500.0,0.00054794,120]
[354831503,1740729052924,-1043.41,0.00054794,120]
[354831504,1740729052934,-500.0,0.00054794,120]
[354831505,1740729052947,-500.0,0.00054794,120]
[354831506,1740729052956,-501.20598005,0.00054794,120]
[354831507,1740729052966,-500.0,0.00054794,120]
[354831508,1740729052975,-500.0,0.00054794,120]
[354831509,1740729052985,-500.0,0.00054794,120]
[354831510,1740729052996,-500.0,0.00054794,120]
[354831511,1740729053008,-1408.38,0.00054794,120]
[354831512,1740729053018,-500.0,0.00054794,120]
[354831513,1740729053028,-500.0,0.00054794,120]
[354831514,1740729053038,-500.0,0.00054794,30]
[354831515,1740729053047,-500.0,0.00054794,120]
[354831516,1740729053057,-500.0,0.00054794,120]
[354831517,1740729053067,-500.0,0.00054794,120]
[354831518,1740729053076,-500.0,0.00054794,120]
[354831519,1740729053086,-500.0,0.00054794,120]
[354831520,1740729053096,-500.0,0.00054794,120]
[354831521,1740729053106,-500.0,0.00054794,120]
[354831522,1740729053115,-500.0,0.00054794,120]
[354831523,1740729053124,-871.78,0.00054794,120]
[354831524,1740729053135,-500.0,0.00054794,120]
[354831525,1740729053144,-500.0,0.00054794,120]
[354831526,1740729053153,-500.0,0.00054794,120]
[354831527,1740729053163,-510.92723203,0.00054794,120]
[354831528,1740729053172,-500.0,0.00054794,120]
[354831529,1740729053183,-500.0,0.00054794,120]
[354831530,1740729053193,-500.0,0.00054794,120]
[354831531,1740729053202,-500.0,0.00054794,120]
[354831532,1740729053213,-851.03,0.00054794,120]
[354831533,1740729053222,-309.61147831,0.00054794,120]
[354831534,1740729053232,-500.0,0.00054794,120]
[354831535,1740729053242,-526.84,0.00054794,120]
[354831536,1740729053260,-500.0,0.00054794,120]
[354831537,1740729053270,-500.0,0.00054794,120]
[354831538,1740729053279,-500.0,0.00054794,120]
[354831539,1740729053288,-500.0,0.00054794,120]
[354831540,1740729053299,-500.9360455,0.00054794,120]
[354831541,1740729053308,-500.0,0.00054794,120]
[354831542,1740729053318,-500.0,0.00054794,120]
[354831543,1740729053327,-500.0,0.00054794,120]
[354831544,1740729053336,-500.0,0.00054794,120]
[354831545,1740729053346,-500.0,0.00054794,120]
[354831546,1740729053356,-694.99,0.00054794,120]
[354831547,1740729053365,-501.78293969,0.00054794,120]
[354831548,1740729053375,-500.0,0.00054794,120]
[354831549,1740729053384,-500.0,0.00054794,120]
[354831550,1740729053394,-501.93753664,0.00054794,120]
[354831551,1740729053404,-500.0,0.00054794,120]
[354831552,1740729053413,-463.03487807,0.00054794,120]
[354831553,1740729053423,-500.0,0.00054794,120]
[354831554,1740729053432,-500.0,0.00054794,120]
[354831555,1740729053442,-500.0,0.00054794,120]
[354831556,1740729053452,-500.0,0.00054794,120]
[354831557,1740729053462,-500.0,0.00054794,120]
[354831558,1740729053471,-500.0,0.00054794,120]
[354831559,1740729053482,-500.52759193,0.00054794,120]
[354831560,1740729053491,-500.0,0.00054794,120]
[354831561,1740729053507,-500.0,0.00054794,120]
[354831562,1740729053516,-500.0,0.00054794,120]
[354831563,1740729053526,-13707.34622851,0.00054794,7]
[354831564,1740729053535,-500.0,0.00054794,120]
[354831565,1740729053545,-500.0,0.00054794,120]
[354831566,1740729053555,-509.26847816,0.00054794,120]
[354831567,1740729053565,-1000.0,0.00054794,120]
[354831569,1740729053574,-539.3,0.00054794,120]
[354831570,1740729053584,-500.0,0.00054794,120]
[354831571,1740729053593,-500.0,0.00054794,120]
[354831572,1740729053603,-500.0,0.00054794,120]
[354831573,1740729053613,-500.0,0.00054794,120]
[354831574,1740729053622,-500.0,0.00054794,120]
[354831575,1740729053632,-300.0,0.00054794,120]
[354831576,1740729053641,-507.98947781,0.00054794,120]
[354831577,1740729053651,-938.58,0.00054794,120]
[354831578,1740729053661,-500.0,0.00054794,120]
[354831579,1740729053671,-500.0,0.00054794,120]
[354831580,1740729053681,-500.0,0.00054794,120]
[354831581,1740729053691,-500.0,0.00054794,120]
[354831582,1740729053704,-500.0,0.00054794,120]
[354831583,1740729053713,-500.0,0.00054794,120]
[354831584,1740729053723,-500.0,0.00054794,120]
[354831585,1740729053733,-500.0,0.00054794,120]
[354831586,1740729053743,-500.0,0.00054794,120]
[354831587,1740729053755,-500.0,0.00054794,120]
[354831588,1740729053765,-500.0,0.00054794,120]
[354831589,1740729053775,-500.0,0.00054794,120]
[354831590,1740729053787,-500.0,0.00054794,120]
[354831591,1740729053796,-488.56,0.00054794,120]
[354831592,1740729053807,-500.0,0.00054794,120]
[354831593,1740729053817,-500.0,0.00054794,120]
[354831594,1740729053826,-501.51128909,0.00054794,120]
[354831595,1740729053835,-708.44,0.00054794,120]
[354831596,1740729053844,-1000.0,0.00054794,120]
[354831597,1740729053854,-520.73,0.00054794,120]
[354831598,1740729053864,-500.0,0.00054794,2]
[354831599,1740729053874,-500.0,0.00054794,120]
[354831600,1740729053884,-500.0,0.00054794,120]
[354831601,1740729053893,-500.0,0.00054794,120]
[354831602,1740729053903,-500.0,0.00054794,120]
[354831603,1740729053914,-500.0,0.00054794,120]
[354831604,1740729053923,-500.0,0.00054794,120]
[354831605,1740729053933,-264.5681138,0.00054794,120]
[354831606,1740729053942,-500.0,0.00054794,120]
[354831607,1740729053952,-500.0,0.00054794,120]
[354831608,1740729053962,-500.0,0.00054794,120]
[354831609,1740729053972,-500.0,0.00054794,120]
[354831610,1740729053982,-500.0,0.00054794,120]
[354831611,1740729053991,-500.0,0.00054794,120]
[354831612,1740729054005,-500.0,0.00054794,120]
[354831613,1740729054016,-500.0,0.00054794,120]
[354831614,1740729054026,-500.0,0.00054794,120]
[354831615,1740729054035,-500.0,0.00054794,120]
[354831616,1740729054045,-500.0,0.00054794,120]
[354831617,1740729054055,-500.0,0.00054794,120]
[354831618,1740729054065,-500.0,0.00054794,120]
[354831619,1740729054075,-500.0,0.00054794,120]
[354831620,1740729054085,-500.0,0.00054794,120]
[354831621,1740729054094,-500.0,0.00054794,120]
[354831622,1740729054104,-500.0,0.00054794,120]
[354831623,1740729054114,-500.0,0.00054794,120]
[354831624,1740729054123,-500.0,0.00054794,120]
[354831625,1740729054133,-500.0,0.00054794,120]
[354831626,1740729054143,-355.88290634,0.00054794,120]
[354831627,1740729054152,-500.0,0.00054794,120]
[354831628,1740729054162,-500.0,0.00054794,120]
[354831629,1740729054172,-500.0,0.00054794,120]
[354831630,1740729054182,-500.0,0.00054794,120]
[354831631,1740729054192,-500.0,0.00054794,120]
[354831632,1740729054202,-500.0,0.00054794,120]
[354831633,1740729054211,-500.0,0.00054794,120]
[354831634,1740729054221,-500.0,0.00054794,120]
[354831635,1740729054230,-500.0,0.00054794,120]
[354831636,1740729054240,-500.0,0.00054794,120]
[354831637,1740729054252,-500.0,0.00054794,120]
[354831638,1740729054261,-676.19,0.00054794,120]
[354831639,1740729054271,-552.08940437,0.00054794,120]
[354831640,1740729054279,-500.0,0.00054794,120]
[354831641,1740729054288,-1222.28,0.00054794,15]
[354831642,1740729054298,-500.0,0.00054794,120]
[354831643,1740729054307,-500.0,0.00054794,120]
[354831644,1740729054317,-500.0,0.00054794,120]
[354831645,1740729054327,-500.0,0.00054794,30]
[354831646,1740729054337,-500.0,0.00054794,120]
[354831647,1740729054347,-500.0,0.00054794,120]
[354831648,1740729054356,-500.0,0.00054794,120]
[354831649,1740729054366,-500.0,0.00054794,120]
[354831650,1740729054376,-500.04126669,0.00054794,120]
[354831651,1740729054386,-500.0,0.00054794,120]
[354831652,1740729054395,-500.0,0.00054794,120]